[Event "Late-Titled-Tuesday-Blitz-April-16-2024"]
[Site "Chess.com"]
[Date "2024.04.16"]
[Round "1"]
[White "vova-79"]
[Black "miraitrunks"]
[Result "1/2-1/2"]
[WhiteElo "2555"]
[BlackElo "2208"]
[TimeControl "180+1"]
[EndTime "14:08:31 PDT"]
[Termination "Game drawn by stalemate"]

1. d4 {[%clk 0:02:55.8]} 1... d5 {[%clk 0:02:59]} 2. c4 {[%clk 0:02:54.7]} 2...
Bf5 {[%clk 0:02:59.2]} 3. cxd5 {[%clk 0:02:54.2]} 3... Bxb1 {[%clk 0:02:58.4]}
4. Qa4+ {[%clk 0:02:54.1]} 4... c6 {[%clk 0:02:58.6]} 5. dxc6 {[%clk 0:02:53.8]}
5... Nxc6 {[%clk 0:02:59.5]} 6. Rxb1 {[%clk 0:02:54]} 6... e5 {[%clk 0:02:57.9]}
7. Bd2 {[%clk 0:02:14.5]} 7... Qxd4 {[%clk 0:02:54.9]} 8. Qxd4 {[%clk
0:02:07.2]} 8... Nxd4 {[%clk 0:02:55.8]} 9. e3 {[%clk 0:02:01.5]} 9... Ne6
{[%clk 0:02:50.5]} 10. Bb5+ {[%clk 0:02:01.5]} 10... Ke7 {[%clk 0:02:50.2]} 11.
Nf3 {[%clk 0:01:53.4]} 11... a6 {[%clk 0:02:49.7]} 12. Bc4 {[%clk 0:01:48.6]}
12... f6 {[%clk 0:02:47.2]} 13. Rd1 {[%clk 0:01:44.4]} 13... b5 {[%clk
0:02:46.7]} 14. Bb4+ {[%clk 0:01:39.4]} 14... Kf7 {[%clk 0:02:37.1]} 15. Rd7+
{[%clk 0:01:38.9]} 15... Ne7 {[%clk 0:02:36.4]} 16. Bb3 {[%clk 0:01:31.3]} 16...
a5 {[%clk 0:02:36.6]} 17. Bxe7 {[%clk 0:01:08.7]} 17... Bxe7 {[%clk 0:02:37.5]}
18. Ke2 {[%clk 0:01:07.2]} 18... Rhd8 {[%clk 0:02:31.5]} 19. Rhd1 {[%clk
0:01:05.7]} 19... Rxd7 {[%clk 0:02:31.4]} 20. Rxd7 {[%clk 0:01:06.6]} 20... Rd8
{[%clk 0:02:31.7]} 21. Rxd8 {[%clk 0:00:58.6]} 21... Bxd8 {[%clk 0:02:31.3]} 22.
Kd3 {[%clk 0:00:58]} 22... Ke7 {[%clk 0:02:31.3]} 23. Bxe6 {[%clk 0:00:56.8]}
23... Kxe6 {[%clk 0:02:31.4]} 24. Nd2 {[%clk 0:00:54.5]} 24... f5 {[%clk
0:02:29.9]} 25. f3 {[%clk 0:00:54.5]} 25... Bb6 {[%clk 0:02:25.3]} 26. b3 {[%clk
0:00:49.2]} 26... g5 {[%clk 0:02:25]} 27. a4 {[%clk 0:00:47.2]} 27... bxa4
{[%clk 0:02:18.9]} 28. bxa4 {[%clk 0:00:48.1]} 28... Bd8 {[%clk 0:02:16.3]} 29.
Kc4 {[%clk 0:00:45.1]} 29... h5 {[%clk 0:02:09.3]} 30. e4 {[%clk 0:00:44.5]}
30... g4 {[%clk 0:02:08.8]} 31. Nb3 {[%clk 0:00:35.8]} 31... h4 {[%clk
0:02:04.1]} 32. h3 {[%clk 0:00:33.9]} 32... gxf3 {[%clk 0:01:37.6]} 33. gxf3
{[%clk 0:00:33.4]} 33... Kf6 {[%clk 0:01:38]} 34. Nc5 {[%clk 0:00:29.3]} 34...
Be7 {[%clk 0:01:23]} 35. Nd3 {[%clk 0:00:28.7]} 35... Bd6 {[%clk 0:01:01.7]} 36.
Kd5 {[%clk 0:00:25.5]} 36... Bc7 {[%clk 0:01:01.5]} 37. Kc6 {[%clk 0:00:25.6]}
37... Bd8 {[%clk 0:00:59.2]} 38. Nc5 {[%clk 0:00:25.2]} 38... Be7 {[%clk
0:00:56.6]} 39. Nd3 {[%clk 0:00:24.1]} 39... Bb4 {[%clk 0:00:53.9]} 40. Kd5
{[%clk 0:00:19.3]} 40... Bc3 {[%clk 0:00:51.7]} 41. Kc4 {[%clk 0:00:19.2]} 41...
Bd4 {[%clk 0:00:48.4]} 42. Kb5 {[%clk 0:00:17.7]} 42... Bc3 {[%clk 0:00:47.4]}
43. Nc5 {[%clk 0:00:17]} 43... Kg5 {[%clk 0:00:45]} 44. Nd3 {[%clk 0:00:17]}
44... Bd2 {[%clk 0:00:42.7]} 45. Kc6 {[%clk 0:00:16.7]} 45... Bc3 {[%clk
0:00:42.2]} 46. Kd6 {[%clk 0:00:16.4]} 46... Bd4 {[%clk 0:00:41.8]} 47. Ke6
{[%clk 0:00:16.3]} 47... fxe4 {[%clk 0:00:41.3]} 48. fxe4 {[%clk 0:00:16.9]}
48... Bc3 {[%clk 0:00:41.2]} 49. Nxe5 {[%clk 0:00:16.8]} 49... Kf4 {[%clk
0:00:41.5]} 50. Ng6+ {[%clk 0:00:16.7]} 50... Kg3 {[%clk 0:00:40]} 51. Kf5
{[%clk 0:00:14.7]} 51... Kxh3 {[%clk 0:00:39.8]} 52. e5 {[%clk 0:00:14.9]} 52...
Kg3 {[%clk 0:00:39.5]} 53. e6 {[%clk 0:00:13.9]} 53... Bb4 {[%clk 0:00:36.8]}
54. Nxh4 {[%clk 0:00:10.5]} 54... Kxh4 {[%clk 0:00:37.7]} 55. Kf6 {[%clk
0:00:11.1]} 55... Kg4 {[%clk 0:00:27.1]} 56. e7 {[%clk 0:00:12]} 56... Bxe7+
{[%clk 0:00:27.1]} 57. Kxe7 {[%clk 0:00:12.9]} 57... Kf4 {[%clk 0:00:27.7]} 58.
Kd6 {[%clk 0:00:13.7]} 58... Ke4 {[%clk 0:00:28.1]} 59. Kc6 {[%clk 0:00:13.6]}
59... Kd4 {[%clk 0:00:28.5]} 60. Kb6 {[%clk 0:00:13.7]} 60... Kc4 {[%clk
0:00:25.2]} 61. Kxa5 {[%clk 0:00:13.9]} 61... Kc5 {[%clk 0:00:25.6]} 62. Ka6
{[%clk 0:00:14.6]} 62... Kc6 {[%clk 0:00:24.9]} 63. Ka7 {[%clk 0:00:13.7]} 63...
Kc7 {[%clk 0:00:20.6]} 64. a5 {[%clk 0:00:14.1]} 64... Kc6 {[%clk 0:00:17.8]}
65. a6 {[%clk 0:00:12.9]} 65... Kc7 {[%clk 0:00:17.6]} 66. Ka8 {[%clk
0:00:13.3]} 66... Kc8 {[%clk 0:00:17.7]} 67. a7 {[%clk 0:00:13.8]} 67... Kc7
{[%clk 0:00:15.9]} 1/2-1/2

[Event "Late-Titled-Tuesday-Blitz-April-16-2024"]
[Site "Chess.com"]
[Date "2024.04.16"]
[Round "1"]
[White "GMG"]
[Black "GiorgianBarbosa"]
[Result "1-0"]
[WhiteElo "2825"]
[BlackElo "2453"]
[TimeControl "180+1"]
[EndTime "14:08:39 PDT"]
[Termination "GMG won by checkmate"]

1. Nf3 {[%clk 0:03:00.9]} 1... Nf6 {[%clk 0:02:58.2]} 2. c4 {[%clk 0:03:00.5]}
2... d5 {[%clk 0:02:59.1]} 3. cxd5 {[%clk 0:02:59.7]} 3... Nxd5 {[%clk 0:03:00]}
4. e4 {[%clk 0:03:00.1]} 4... Nb6 {[%clk 0:02:58.7]} 5. d4 {[%clk 0:03:00.2]}
5... g6 {[%clk 0:02:59.6]} 6. Be3 {[%clk 0:02:58.9]} 6... Bg7 {[%clk 0:03:00.5]}
7. Be2 {[%clk 0:02:58.6]} 7... O-O {[%clk 0:03:01.4]} 8. O-O {[%clk 0:02:58.2]}
8... Bg4 {[%clk 0:02:50.9]} 9. Nbd2 {[%clk 0:02:56.9]} 9... Nc6 {[%clk
0:02:50.6]} 10. h3 {[%clk 0:02:57.3]} 10... Bd7 {[%clk 0:02:27.1]} 11. d5 {[%clk
0:02:41]} 11... Ne5 {[%clk 0:02:25.1]} 12. Nxe5 {[%clk 0:02:41.1]} 12... Bxe5
{[%clk 0:02:26]} 13. Qb3 {[%clk 0:02:31.6]} 13... a5 {[%clk 0:02:21.2]} 14. Nf3
{[%clk 0:02:28.6]} 14... Bg7 {[%clk 0:02:19.8]} 15. a4 {[%clk 0:02:12.4]} 15...
e6 {[%clk 0:02:19.1]} 16. d6 {[%clk 0:02:03.7]} 16... Nxa4 {[%clk 0:01:57]} 17.
Rxa4 {[%clk 0:01:49.2]} 17... Bxa4 {[%clk 0:01:57.9]} 18. Qxa4 {[%clk
0:01:50.1]} 18... cxd6 {[%clk 0:01:54.4]} 19. Bd4 {[%clk 0:01:45.4]} 19... Bxd4
{[%clk 0:01:51.1]} 20. Nxd4 {[%clk 0:01:46.3]} 20... Qb6 {[%clk 0:01:51.7]} 21.
Nb5 {[%clk 0:01:45.9]} 21... Rac8 {[%clk 0:01:43.7]} 22. Rd1 {[%clk 0:01:44.1]}
22... Rfd8 {[%clk 0:01:42.5]} 23. Bc4 {[%clk 0:01:15.9]} 23... Rc5 {[%clk
0:01:34.7]} 24. b3 {[%clk 0:01:09.9]} 24... d5 {[%clk 0:01:23.8]} 25. exd5
{[%clk 0:01:10.8]} 25... exd5 {[%clk 0:01:23.1]} 26. Bd3 {[%clk 0:01:09.1]}
26... h5 {[%clk 0:01:08.4]} 27. h4 {[%clk 0:01:04.5]} 27... d4 {[%clk
0:00:55.3]} 28. g3 {[%clk 0:00:53.3]} 28... Re5 {[%clk 0:00:32.4]} 29. Ra1
{[%clk 0:00:48.6]} 29... Rde8 {[%clk 0:00:14.2]} 30. Qxa5 {[%clk 0:00:44.7]}
30... Qxa5 {[%clk 0:00:14]} 31. Rxa5 {[%clk 0:00:45.6]} 31... Rc8 {[%clk
0:00:10.8]} 32. Ra4 {[%clk 0:00:41.2]} 32... Rd8 {[%clk 0:00:09.7]} 33. Kf1
{[%clk 0:00:36.5]} 33... Kg7 {[%clk 0:00:09.7]} 34. Ra7 {[%clk 0:00:26.8]} 34...
Rd7 {[%clk 0:00:09.3]} 35. Na3 {[%clk 0:00:26.4]} 35... Red5 {[%clk 0:00:08.9]}
36. Nc4 {[%clk 0:00:26.1]} 36... b5 {[%clk 0:00:09.2]} 37. Rxd7 {[%clk 0:00:24]}
37... Rxd7 {[%clk 0:00:10.1]} 38. Na3 {[%clk 0:00:23.1]} 38... b4 {[%clk
0:00:09.6]} 39. Nc2 {[%clk 0:00:23.7]} 39... Kf6 {[%clk 0:00:08.5]} 40. Nxb4
{[%clk 0:00:19.9]} 40... Rb7 {[%clk 0:00:08.4]} 41. Nd5+ {[%clk 0:00:20.1]}
41... Ke5 {[%clk 0:00:07.8]} 42. Bc4 {[%clk 0:00:20.7]} 42... Rd7 {[%clk
0:00:07.7]} 43. Nf4 {[%clk 0:00:20.3]} 43... Ke4 {[%clk 0:00:06.4]} 44. Ke2
{[%clk 0:00:20.6]} 44... Ke5 {[%clk 0:00:05.3]} 45. Kf3 {[%clk 0:00:19.9]} 45...
Rb7 {[%clk 0:00:05.4]} 46. Nd3+ {[%clk 0:00:20]} 46... Kd6 {[%clk 0:00:04.1]}
47. Ke4 {[%clk 0:00:20]} 47... Re7+ {[%clk 0:00:04.7]} 48. Kxd4 {[%clk
0:00:20.4]} 48... Re2 {[%clk 0:00:05.6]} 49. Bxf7 {[%clk 0:00:20.1]} 49... Rd2
{[%clk 0:00:01.3]} 50. Bxg6 {[%clk 0:00:19.5]} 50... Rd1 {[%clk 0:00:02.2]} 51.
Bxh5 {[%clk 0:00:19.5]} 51... Rh1 {[%clk 0:00:02.9]} 52. Bg6 {[%clk 0:00:18.8]}
52... Rh2 {[%clk 0:00:03.8]} 53. h5 {[%clk 0:00:18.7]} 53... Rh1 {[%clk
0:00:04.7]} 54. f4 {[%clk 0:00:18.3]} 54... Ke7 {[%clk 0:00:05.6]} 55. g4 {[%clk
0:00:18.2]} 55... Kf6 {[%clk 0:00:06.5]} 56. g5+ {[%clk 0:00:18.5]} 56... Kg7
{[%clk 0:00:07.3]} 57. f5 {[%clk 0:00:18.6]} 57... Rh4+ {[%clk 0:00:07.9]} 58.
Ke5 {[%clk 0:00:18.4]} 58... Rh1 {[%clk 0:00:08.8]} 59. f6+ {[%clk 0:00:17.5]}
59... Kh8 {[%clk 0:00:09.7]} 60. Nf4 {[%clk 0:00:17.6]} 60... Re1+ {[%clk
0:00:08.9]} 61. Kf5 {[%clk 0:00:17.9]} 61... Ra1 {[%clk 0:00:05.9]} 62. Bf7
{[%clk 0:00:18]} 62... Ra5+ {[%clk 0:00:06.2]} 63. Bd5 {[%clk 0:00:18]} 63...
Ra7 {[%clk 0:00:06]} 64. b4 {[%clk 0:00:18]} 64... Rb7 {[%clk 0:00:06.1]} 65.
Ne6 {[%clk 0:00:17.2]} 65... Ra7 {[%clk 0:00:07]} 66. g6 {[%clk 0:00:17.4]}
66... Rd7 {[%clk 0:00:03.8]} 67. g7+ {[%clk 0:00:17.8]} 67... Kh7 {[%clk
0:00:03]} 68. Nf8+ {[%clk 0:00:17]} 68... Kh6 {[%clk 0:00:03.1]} 69. Nxd7 {[%clk
0:00:16]} 69... Kh7 {[%clk 0:00:02.8]} 70. g8=Q+ {[%clk 0:00:16.3]} 70... Kh6
{[%clk 0:00:02.7]} 71. Qg6# {[%clk 0:00:17.2]} 1-0

[Event "Late-Titled-Tuesday-Blitz-April-16-2024"]
[Site "Chess.com"]
[Date "2024.04.16"]
[Round "1"]
[White "NCchamp"]
[Black "2346PL"]
[Result "1/2-1/2"]
[WhiteElo "2246"]
[BlackElo "2574"]
[TimeControl "180+1"]
[EndTime "14:08:41 PDT"]
[Termination "Game drawn by repetition"]

1. d4 {[%clk 0:03:00.9]} 1... d6 {[%clk 0:02:59.6]} 2. e4 {[%clk 0:02:59.8]}
2... Nf6 {[%clk 0:02:59]} 3. Nc3 {[%clk 0:02:58.7]} 3... e5 {[%clk 0:02:59.2]}
4. Nf3 {[%clk 0:02:51.7]} 4... Nbd7 {[%clk 0:02:58]} 5. Bg5 {[%clk 0:02:46.1]}
5... Be7 {[%clk 0:02:57.7]} 6. Qd2 {[%clk 0:02:34.6]} 6... O-O {[%clk
0:02:57.6]} 7. O-O-O {[%clk 0:02:33.8]} 7... c6 {[%clk 0:02:55.3]} 8. h4 {[%clk
0:02:31.4]} 8... b5 {[%clk 0:02:52.1]} 9. Bd3 {[%clk 0:02:23.4]} 9... b4 {[%clk
0:02:50]} 10. Ne2 {[%clk 0:02:22.9]} 10... Qa5 {[%clk 0:02:49.3]} 11. Kb1 {[%clk
0:02:21.8]} 11... Qb6 {[%clk 0:02:22.8]} 12. h5 {[%clk 0:02:14.3]} 12... a5
{[%clk 0:02:19.1]} 13. h6 {[%clk 0:02:14.4]} 13... g6 {[%clk 0:02:19.6]} 14. Be3
{[%clk 0:01:50.2]} 14... Qb7 {[%clk 0:02:17.6]} 15. Ng5 {[%clk 0:01:45.6]} 15...
Ng4 {[%clk 0:02:14.4]} 16. f4 {[%clk 0:01:39.5]} 16... Nxe3 {[%clk 0:02:12.4]}
17. Qxe3 {[%clk 0:01:39.4]} 17... exf4 {[%clk 0:02:07.1]} 18. Qxf4 {[%clk
0:01:39.4]} 18... Nb6 {[%clk 0:01:52.3]} 19. Rdf1 {[%clk 0:01:38.3]} 19... f6
{[%clk 0:01:46.7]} 20. Nf3 {[%clk 0:01:22]} 20... Be6 {[%clk 0:01:46.5]} 21. Qg3
{[%clk 0:01:16.2]} 21... c5 {[%clk 0:01:42.4]} 22. e5 {[%clk 0:01:12.2]} 22...
f5 {[%clk 0:01:38.6]} 23. exd6 {[%clk 0:01:12]} 23... Bf6 {[%clk 0:01:36.6]} 24.
dxc5 {[%clk 0:01:12.3]} 24... Na4 {[%clk 0:01:35.5]} 25. Ned4 {[%clk 0:01:03]}
25... Bd5 {[%clk 0:01:33.7]} 26. Bxf5 {[%clk 0:00:54.5]} 26... Nxc5 {[%clk
0:01:29.5]} 27. Bxg6 {[%clk 0:00:33.9]} 27... hxg6 {[%clk 0:01:28.3]} 28. Qxg6+
{[%clk 0:00:34.8]} 28... Kh8 {[%clk 0:01:28.8]} 29. Nf5 {[%clk 0:00:31.7]} 29...
Be4 {[%clk 0:01:12.4]} 30. N3h4 {[%clk 0:00:21.3]} 30... Rac8 {[%clk 0:01:00.7]}
31. Qg4 {[%clk 0:00:18.9]} 31... Rg8 {[%clk 0:00:50.9]} 32. Ng6+ {[%clk
0:00:17.7]} 32... Rxg6 {[%clk 0:00:49.8]} 33. Qxg6 {[%clk 0:00:18.6]} 33...
Bxc2+ {[%clk 0:00:45.2]} 34. Kxc2 {[%clk 0:00:12.9]} 34... Qe4+ {[%clk
0:00:43.9]} 35. Kd1 {[%clk 0:00:08]} 35... Bxb2 {[%clk 0:00:33.6]} 36. Qg7+
{[%clk 0:00:04.7]} 36... Bxg7 {[%clk 0:00:30.7]} 37. hxg7+ {[%clk 0:00:05.6]}
37... Kg8 {[%clk 0:00:29.9]} 38. Rh8+ {[%clk 0:00:06.5]} 38... Kf7 {[%clk
0:00:29.7]} 39. Ng3+ {[%clk 0:00:07.1]} 39... Kxg7 {[%clk 0:00:28.6]} 40. Nxe4
{[%clk 0:00:06]} 40... Kxh8 {[%clk 0:00:23.4]} 41. Nxc5 {[%clk 0:00:05.7]} 41...
Rxc5 {[%clk 0:00:23.9]} 42. Rf8+ {[%clk 0:00:05.8]} 42... Kg7 {[%clk 0:00:22.4]}
43. Rd8 {[%clk 0:00:06.2]} 43... Kf6 {[%clk 0:00:20]} 44. d7 {[%clk 0:00:03.4]}
44... Ke7 {[%clk 0:00:18]} 45. Rg8 {[%clk 0:00:03.1]} 45... Kxd7 {[%clk
0:00:18.3]} 46. g4 {[%clk 0:00:03.3]} 46... a4 {[%clk 0:00:16.6]} 47. Rb8 {[%clk
0:00:02.4]} 47... Rc4 {[%clk 0:00:15.5]} 48. g5 {[%clk 0:00:02.9]} 48... Rg4
{[%clk 0:00:10.7]} 49. Rb5 {[%clk 0:00:02.5]} 49... Kc6 {[%clk 0:00:09.9]} 50.
Ra5 {[%clk 0:00:02.8]} 50... Kb6 {[%clk 0:00:09.8]} 51. Rxa4 {[%clk 0:00:02.9]}
51... Kb5 {[%clk 0:00:10.3]} 52. Ra8 {[%clk 0:00:02.7]} 52... Rxg5 {[%clk
0:00:10.6]} 53. Kc2 {[%clk 0:00:02.9]} 53... Rg2+ {[%clk 0:00:08.4]} 54. Kb1
{[%clk 0:00:02.8]} 54... Kc4 {[%clk 0:00:05]} 55. Rc8+ {[%clk 0:00:02.9]} 55...
Kd4 {[%clk 0:00:05.2]} 56. Rd8+ {[%clk 0:00:03.1]} 56... Kc3 {[%clk 0:00:05.7]}
57. Rc8+ {[%clk 0:00:03.3]} 57... Kd3 {[%clk 0:00:06.6]} 58. Rd8+ {[%clk
0:00:03.6]} 58... Kc4 {[%clk 0:00:06.8]} 59. Rc8+ {[%clk 0:00:03.4]} 59... Kd5
{[%clk 0:00:07.3]} 60. Rd8+ {[%clk 0:00:03.6]} 60... Kc5 {[%clk 0:00:07.4]} 61.
Rc8+ {[%clk 0:00:03.8]} 61... Kd6 {[%clk 0:00:06.8]} 62. Rd8+ {[%clk 0:00:04.2]}
62... Kc7 {[%clk 0:00:07]} 63. Rd4 {[%clk 0:00:04]} 63... Rg1+ {[%clk
0:00:01.8]} 64. Kb2 {[%clk 0:00:03.9]} 64... Rg2+ {[%clk 0:00:02.7]} 65. Kb3
{[%clk 0:00:04.5]} 65... Kc6 {[%clk 0:00:02.5]} 66. Rc4+ {[%clk 0:00:03.9]}
66... Kb5 {[%clk 0:00:02.8]} 67. Rxb4+ {[%clk 0:00:04.3]} 67... Ka5 {[%clk
0:00:03.7]} 68. Rf4 {[%clk 0:00:04.3]} 68... Rg3+ {[%clk 0:00:03.3]} 69. Kb2
{[%clk 0:00:05.2]} 69... Rg2+ {[%clk 0:00:03.7]} 70. Kb1 {[%clk 0:00:04.9]}
70... Rg3 {[%clk 0:00:03.7]} 71. Kb2 {[%clk 0:00:04.6]} 71... Rg2+ {[%clk
0:00:03.9]} 72. Kb3 {[%clk 0:00:04.5]} 72... Rg3+ {[%clk 0:00:04.8]} 73. Kb2
{[%clk 0:00:05.2]} 1/2-1/2

[Event "Late-Titled-Tuesday-Blitz-April-16-2024"]
[Site "Chess.com"]
[Date "2024.04.16"]
[Round "1"]
[White "littlepinkyboy"]
[Black "laskakid"]
[Result "0-1"]
[WhiteElo "2640"]
[BlackElo "2372"]
[TimeControl "180+1"]
[EndTime "14:08:45 PDT"]
[Termination "laskakid won on time"]

1. e4 {[%clk 0:02:57.5]} 1... d6 {[%clk 0:03:00]} 2. d4 {[%clk 0:02:51.7]} 2...
Nf6 {[%clk 0:03:00.3]} 3. Nc3 {[%clk 0:02:50.4]} 3... e5 {[%clk 0:03:00.4]} 4.
dxe5 {[%clk 0:02:48.4]} 4... dxe5 {[%clk 0:03:01.3]} 5. Qxd8+ {[%clk 0:02:47.7]}
5... Kxd8 {[%clk 0:03:02.2]} 6. Nf3 {[%clk 0:02:48.1]} 6... Bd6 {[%clk
0:03:01.4]} 7. Bg5 {[%clk 0:02:46.5]} 7... Be6 {[%clk 0:02:58.7]} 8. O-O-O
{[%clk 0:02:44.7]} 8... Nd7 {[%clk 0:02:58.3]} 9. Bb5 {[%clk 0:02:20.2]} 9...
Kc8 {[%clk 0:02:51.3]} 10. a3 {[%clk 0:02:15.4]} 10... a6 {[%clk 0:02:47.9]} 11.
Be2 {[%clk 0:02:14.6]} 11... h6 {[%clk 0:02:42.4]} 12. Bh4 {[%clk 0:02:06.8]}
12... g5 {[%clk 0:02:30.5]} 13. Bg3 {[%clk 0:02:05.4]} 13... Nh5 {[%clk
0:02:30.7]} 14. Nd5 {[%clk 0:01:55.4]} 14... Nf4 {[%clk 0:02:11.5]} 15. Bxf4
{[%clk 0:01:50.2]} 15... exf4 {[%clk 0:02:03.8]} 16. Nd4 {[%clk 0:01:46.7]}
16... Ne5 {[%clk 0:01:52]} 17. Nxe6 {[%clk 0:01:37.6]} 17... fxe6 {[%clk
0:01:52]} 18. Nb6+ {[%clk 0:01:35.3]} 18... cxb6 {[%clk 0:01:51.8]} 19. Rxd6
{[%clk 0:01:35.8]} 19... Re8 {[%clk 0:01:39.7]} 20. Rxb6 {[%clk 0:01:35.1]}
20... Kc7 {[%clk 0:01:40]} 21. Rb3 {[%clk 0:01:34.4]} 21... Rad8 {[%clk
0:01:37]} 22. Rd1 {[%clk 0:01:30.5]} 22... Rxd1+ {[%clk 0:01:33.1]} 23. Bxd1
{[%clk 0:01:29.9]} 23... Rd8 {[%clk 0:01:29.4]} 24. Be2 {[%clk 0:01:29.1]} 24...
Rd4 {[%clk 0:01:24.9]} 25. Rc3+ {[%clk 0:01:23.9]} 25... Kd6 {[%clk 0:01:23.5]}
26. f3 {[%clk 0:01:24.8]} 26... Ng6 {[%clk 0:01:12.1]} 27. Rc8 {[%clk
0:01:23.2]} 27... Kd7 {[%clk 0:00:58.2]} 28. Rg8 {[%clk 0:01:17.1]} 28... Nh4
{[%clk 0:00:57.2]} 29. g3 {[%clk 0:01:13.8]} 29... Ng2 {[%clk 0:00:50.7]} 30.
Rg6 {[%clk 0:01:10.6]} 30... Ne1 {[%clk 0:00:36.8]} 31. Rxh6 {[%clk 0:01:04.9]}
31... g4 {[%clk 0:00:37.1]} 32. fxg4 {[%clk 0:00:51]} 32... Rxe4 {[%clk
0:00:27.4]} 33. Bd3 {[%clk 0:00:43.7]} 33... Nxd3+ {[%clk 0:00:18.1]} 34. cxd3
{[%clk 0:00:43.8]} 34... fxg3 {[%clk 0:00:13.4]} 35. hxg3 {[%clk 0:00:38.5]}
35... Rxg4 {[%clk 0:00:13.6]} 36. Rh3 {[%clk 0:00:38.4]} 36... Kc6 {[%clk
0:00:12.9]} 37. Kd2 {[%clk 0:00:39.1]} 37... Kd5 {[%clk 0:00:12]} 38. Ke3 {[%clk
0:00:37.4]} 38... b5 {[%clk 0:00:12.1]} 39. Kf3 {[%clk 0:00:31.9]} 39... Rd4
{[%clk 0:00:12.2]} 40. Rh5+ {[%clk 0:00:30.3]} 40... e5 {[%clk 0:00:11.4]} 41.
Ke3 {[%clk 0:00:29.4]} 41... Rg4 {[%clk 0:00:11.5]} 42. Rh3 {[%clk 0:00:16.8]}
42... a5 {[%clk 0:00:11.2]} 43. Kf3 {[%clk 0:00:14.4]} 43... Rd4 {[%clk
0:00:11.1]} 44. Ke2 {[%clk 0:00:13.8]} 44... Rg4 {[%clk 0:00:08.4]} 45. Ke3
{[%clk 0:00:14.5]} 45... a4 {[%clk 0:00:07.9]} 46. Kd2 {[%clk 0:00:14.2]} 46...
b4 {[%clk 0:00:07.6]} 47. axb4 {[%clk 0:00:13.9]} 47... Rxb4 {[%clk 0:00:07.5]}
48. Kc3 {[%clk 0:00:13.2]} 48... Rg4 {[%clk 0:00:06.4]} 49. Rh4 {[%clk
0:00:11.1]} 49... Rxg3 {[%clk 0:00:05.7]} 50. Rxa4 {[%clk 0:00:10.3]} 50... Rg1
{[%clk 0:00:04.2]} 51. Ra5+ {[%clk 0:00:09.1]} 51... Kd6 {[%clk 0:00:04.5]} 52.
Ra6+ {[%clk 0:00:06.8]} 52... Kd5 {[%clk 0:00:04.5]} 53. Ra5+ {[%clk 0:00:04.2]}
53... Kd6 {[%clk 0:00:04.5]} 54. b4 {[%clk 0:00:03.6]} 54... Rg3 {[%clk
0:00:04]} 55. Ra6+ {[%clk 0:00:03.3]} 55... Kd5 {[%clk 0:00:04]} 56. Ra5+ {[%clk
0:00:02.8]} 56... Kd6 {[%clk 0:00:04.3]} 57. b5 {[%clk 0:00:03]} 57... e4 {[%clk
0:00:03.8]} 58. b6 {[%clk 0:00:03.8]} 58... Rxd3+ {[%clk 0:00:03.2]} 59. Kc4
{[%clk 0:00:01]} 59... Kc6 {[%clk 0:00:03.5]} 60. Rb5 {[%clk 0:00:01.8]} 60...
Kb7 {[%clk 0:00:03.8]} 61. Rc5 {[%clk 0:00:01.7]} 61... Rd6 {[%clk 0:00:03.7]}
62. Rb5 {[%clk 0:00:02.6]} 62... Rxb6 {[%clk 0:00:03.9]} 0-1